Cogmind - Beta 11 X8 @@@ ROGUE MODE // 2021.12.10 @ 03:32:03 Player: youngster Result: Destroyed by M Guard with Ragnarok Missile Launcher Performance ------------- Evolutions (9) 4500 Regions Visited (28) 5600 Robots Destroyed (316) 1580 Value Destroyed (15782) 15782 Prototype IDs (106) 2120 Alien Tech Used (1) 200 Bonus (16317) 16317 TOTAL SCORE: 46099 Bonus ------- High Alert Combat Kills 1022 Follower Combat Kills 1829 Network Hubs Disabled 200 Met Imprinter 300 Met Zhirov 300 Met Warlord at Base 500 MAIN.C Attacked Warlord 500 Warlord Defense Kill 4246 A7 Reached Mainframe 300 Met MAIN.C 5000 Hacked MAIN.C 300 Met Warlord at Command 2000 Friendly Fire -180 Cogmind --------- Core Integrity 0/1600 Matter 176/300 Energy 44/100 System Corruption 18% Temperature Cool (0) Movement Core (450) Ox8 Location -1/Command Parts ------- > --- POWER (2) -------- (None) > --- PROPULSION (6) --- (None) > --- UTILITY (13) ----- Advanced Targeting Computer Advanced Target Analyzer Heavy Regenerative Plating Hacking Suite Advanced Hacking Suite Improved System Shield > --- WEAPON (4) ------- Advanced Remote Datajack > --- INVENTORY (5) ---- Light Antimatter Reactor Improved Energy Mantle Peak State ------------ > --- POWER ------------ Quantum Reactor > --- PROPULSION ------- Improved Heavy Treads Armored Heavy Treads Biometal Heavy Treads > --- UTILITY ---------- High-capacity Storage Unit Enhanced Optical Array Advanced Signal Interpreter Experimental Terrain Scan Processor Experimental Targeting Computer Advanced Target Analyzer SHELL Armor Hacking Suite Advanced Hacking Suite Experimental Hacking Suite > --- WEAPON ----------- Railgun Heavy Linear Accelerator Z-bomb Delivery System > --- INVENTORY -------- Quantum Reactor Heavy Treads Coolant Network Spectral Analyzer Advanced Sensor Array Advanced Terrain Scanner Improved Weapon Cycler Improved Energy Mantle Improved System Restoration Module Vortex Driver Vortex Driver Hypervelocity Railgun Hypervelocity Railgun Linear Accelerator Linear Accelerator Micro-nuke Launcher Advanced Remote Datajack Plasma Lance [Rating: 187] Favorites ----------- Power Heavy Ion Engine Engine Heavy Ion Engine Power Core Micro Fission Core Reactor Quantum Reactor Propulsion Armored Treads Treads Armored Treads Leg Flexi-carbon Leg Wheel Wheel Hover Unit Improved Antigrav System Flight Unit Makeshift Flight Unit Utility Enhanced Optical Array Device Improved Sensor Array Storage Huge Storage Unit Processor Enhanced Optical Array Hackware Advanced Hacking Suite Protection Medium Armor Plating Weapon Enhanced Autogun Energy Gun EM Pulse Gun Energy Cannon Heavy Plasma Cannon Ballistic Gun Enhanced Autogun Ballistic Cannon Linear Accelerator Launcher Improved Proton Missile Launcher Special Weapon RU-N14's Throwing Claymores v3 Impact Weapon Power Maul Slashing Weapon Ionic Axe Piercing Weapon CR-A16's Behemoth Slayer Special Melee Weapon Improved Datajack Build | -11 -10 -10 -10 -9 -8 -8 -7 -6 -6 -6 -6 -5 -5 -5 -5 -5 -5 -4 -4 -4 -4 -3 -3 -3 -2 -2 -1 -1 ------- Run | Scr Mat Min Exi Min Mat Sto Fac Fac Low Low Zio Pro Fac Ext Cet Arc Hub Fac Upp Upp War Pro Res Arm Res Tes Acc Com Slots Evolved 18 | . . . . . 4 . 2 2 . . . . 2 . . . . 2 . . . . 2 . 2 . 2 . Power 1 | . . . . . . . . . . . . . . . . . . . . . . . . . . . 1 . Propulsion 4 | . . . . . 2 . 1 1 . . . . . . . . . . . . . . . . . . . . Utility 11 | . . . . . 1 . 1 1 . . . . 2 . . . . 2 . . . . 2 . 1 . 1 . Weapon 2 | . . . . . 1 . . . . . . . . . . . . . . . . . . . 1 . . . Parts Attached 561 | 6 27 4 3 13 32 42 26 27 33 4 14 7 21 32 12 1 42 55 11 5 6 3 6 37 7 41 26 18 Power 22 | 1 . 1 . 1 . 2 . . 1 . . . . 1 1 . 2 3 2 . . . . 1 . 2 3 1 Engine 6 | 1 . 1 . 1 . 1 . . 1 . . . . . . . . . . . . . . . . . 1 . Core 6 | . . . . . . 1 . . . . . . . 1 . . 2 2 . . . . . . . . . . Reactor 10 | . . . . . . . . . . . . . . . 1 . . 1 2 . . . . 1 . 2 2 1 Propulsion 118 | 2 2 . . 2 15 12 8 4 9 . 1 1 1 6 1 . 12 13 2 2 1 2 . 5 3 5 3 6 Treads 86 | 2 2 . . 2 10 7 8 4 9 . 1 1 1 6 1 . 8 7 2 . 1 1 . 2 3 5 2 1 Leg 10 | . . . . . . . . . . . . . . . . . 3 4 . . . . . 1 . . 1 1 Wheel 18 | . . . . . 5 5 . . . . . . . . . . 1 1 . 2 . . . 1 . . . 3 Hover 3 | . . . . . . . . . . . . . . . . . . 1 . . . . . 1 . . . 1 Flight 1 | . . . . . . . . . . . . . . . . . . . . . . 1 . . . . . . Utility 198 | 1 2 . . 1 5 7 9 8 13 2 8 5 11 15 4 1 9 20 6 2 . 1 4 20 1 20 15 8 Device 110 | . . . . . 1 2 1 3 7 1 5 3 9 9 . 1 5 10 6 2 . 1 2 20 . 10 11 1 Storage 5 | 1 1 . . . 1 . . . . . . . . 1 . . . . . . . . 1 . . . . . Processor 18 | . 1 . . . 1 . 3 2 . . 3 . . . 1 . . 4 . . . . . . . 1 1 1 Hackware 6 | . . . . . . . . . . . . . . 1 . . . 1 . . . . 1 . . . . 3 Protection 59 | . . . . 1 2 5 5 3 6 1 . 2 2 4 3 . 4 5 . . . . . . 1 9 3 3 Artifact . | . . . . . . . . . . . . . . . . . . . . . . . . . . . . . Weapon 223 | 2 23 3 3 9 12 21 9 15 10 2 5 1 9 10 6 . 19 19 1 1 5 . 2 11 3 14 5 3 Energy Gun 9 | . 9 . . . . . . . . . . . . . . . . . . . . . . . . . . . Energy Cannon 9 | . . . . . . 4 . . . . . . . . . . . . . 1 1 . . 1 . . 2 . Ballistic Gun 108 | 2 8 2 2 5 8 9 6 7 7 . 3 1 4 4 4 . 10 15 . . 2 . 1 2 1 3 2 . Ballistic Cannon 9 | . . . . . . 1 . . . . . . . . . . . . . . . . . 4 . 4 . . Launcher 42 | . 6 1 . 4 4 2 3 3 2 . 1 . 1 2 1 . 4 2 . . . . . 1 . 5 . . Special Weapon 5 | . . . . . . . . . . . . . . . . . . . . . 2 . . . . . . 3 Impact Weapon 13 | . . . . . . 5 . 4 1 1 . . . . . . 1 . . . . . 1 . . . . . Slashing Weapon 4 | . . . . . . . . . . . . . . . . . . . 1 . . . . 3 . . . . Piercing Weapon 19 | . . . . . . . . . . . 1 . 4 2 1 . 4 2 . . . . . . 2 2 1 . Special Melee Weapon 5 | . . . 1 . . . . 1 . 1 . . . 2 . . . . . . . . . . . . . . Unidentified Prototypes 31 | . . . . . . 4 . . . . 4 . 1 . 3 . 1 2 . . 3 . . 5 1 7 . . Corrupted Parts 6 | . . . . . . 1 . . 1 . 1 . . . . . 3 . . . . . . . . . . . System Corruption 39 | . . . . . . 6 . . 10 . 8 . . . . . 15 . . . . . . . . . . . Parts Lost 117 | . . 1 . 3 1 2 1 1 13 . . . 1 . . . 13 22 6 2 3 . . 7 . 7 20 14 Power 12 | . . 1 . 1 . . . . . . . . . . . . 2 3 . . . . . . . 1 3 1 Propulsion 47 | . . . . 2 . . . . 7 . . . . . . . 5 9 4 . 2 . . 4 . 2 6 6 Utility 32 | . . . . . . 1 1 1 3 . . . 1 . . . 2 5 1 1 1 . . 1 . 1 7 6 Weapon 26 | . . . . . 1 1 . . 3 . . . . . . . 4 5 1 1 . . . 2 . 3 4 1 Highest Loss Streak 14 | . . 1 . 3 1 1 1 1 7 . . . 1 . . . 7 14 3 2 2 . . 3 . 4 11 11 Average Slot Usage (%) 92 | . 97 97 100 99 99 100 99 100 97 92 98 100 94 94 92 94 89 88 85 83 92 88 89 89 79 81 78 50 Engine 4 | . 14 11 14 13 9 7 7 6 6 6 6 6 5 2 . . . . . . . . . . . . . . Reactor 1 | . . . . . . . . . . . . . . . 3 5 1 1 3 5 5 5 4 4 4 3 6 . Treads 25 | . 28 28 28 28 30 28 37 40 38 33 39 40 29 29 29 29 24 14 10 10 9 9 9 9 9 14 12 2 Wheel 2 | . . . . . 5 7 . . . . . . . . . . . . 5 8 15 15 14 10 4 . . 4 Device 4 | . . . . . . . . 7 9 8 5 4 5 6 . . 1 6 9 8 9 9 11 8 8 5 8 2 Storage 6 | . 19 14 14 14 9 9 7 6 6 6 6 6 5 5 5 5 5 3 . . . . 1 4 4 4 3 . Processor 15 | . 6 14 14 4 8 9 15 13 13 13 18 20 17 11 17 17 17 25 26 26 26 26 23 23 21 21 18 16 Hackware 4 | . . . . . . . . . . . . . . 3 5 5 5 5 10 10 10 10 11 14 13 13 10 16 Protection 4 | . . . . 9 8 8 7 4 2 3 1 1 10 11 9 11 6 2 . . . . . . 1 3 3 . Ballistic Gun 14 | . 13 23 19 22 26 23 20 17 18 15 8 20 12 15 11 11 10 12 10 10 6 10 9 3 3 6 6 . Naked Turns . | . . . . . . . . . . . . . . . . . . . . . . . . . . . . . Heaviest Build 139 | 12 36 31 31 41 104 104 104 108 111 105 104 104 109 118 126 120 122 117 35 43 47 29 72 104 106 139 139 46 Greatest Support 214 | 40 46 46 46 46 91 85 108 132 135 110 130 138 160 171 181 181 214 214 28 54 54 54 54 97 195 210 190 58 Greatest Overweight (x) 10 | . . . . . 10 10 1 . . . . . . . . . 1 2 3 3 . . 1 2 2 1 1 1 Average Overweight (x) . | . . . . . 4 8 . . . . . . . . . . . . 2 1 . . . 1 . . . . Largest Inventory Capacity 25 | 8 15 15 15 15 25 25 25 25 25 25 25 25 25 25 25 25 25 25 5 5 5 5 20 20 20 20 20 5 Average Capacity 19 | 7 13 15 15 15 20 25 25 25 25 25 25 25 25 25 25 25 25 19 5 5 5 5 9 20 20 20 18 5 Most Carried 25 | 5 15 15 15 15 24 25 25 25 25 25 25 25 25 25 25 25 25 25 5 5 5 5 12 20 20 20 20 5 Average Carried 18 | 4 11 14 15 14 17 24 24 24 21 19 24 24 24 24 24 25 24 18 5 5 4 5 6 19 19 17 16 4 Final Capacity 25 | 8 15 15 15 15 25 25 25 25 25 25 25 25 25 25 25 25 25 5 5 5 5 5 20 20 20 20 5 5 Final Carried 25 | 4 15 15 15 15 24 25 25 25 18 25 25 25 25 25 25 25 22 5 5 5 5 5 12 20 20 20 5 2 Class Distribution -------------------- 17% | Mutant 14% | Scavenger-Mutant 14% | Tank 12% | Hacker-Assassin 8% | Hacker-Mutant 6% | Scavenger-Tank 5% | Scavenger-Assassin 4% | Scavenger-Skirmisher 4% | Hacker-Skirmisher 4% | Scavenger-Gunner 3% | Gunner Dominant Class ---------------- Mutant | -10/Materials Mutant | -10/Mines Mutant | -10/Exiles Mutant | -9/Mines Tank | -8/Materials Tank | -8/Storage Gunner | -7/Factory Scavenger-Mutant | -6/Factory Scavenger-Tank | -6/Lower Caves Scavenger-Mutant | -6/Lower Caves Scavenger-Mutant | -6/Zion Scavenger-Skirmisher | -5/Proximity Caves Scavenger-Assassin | -5/Factory Scavenger-Tank | -5/Extension Scavenger-Mutant | -5/Cetus Scavenger-Mutant | -5/Archives Scavenger-Mutant | -5/Hub_04(d) Scavenger-Gunner | -4/Factory Hacker-Assassin | -4/Upper Caves Hacker-Mutant | -4/Upper Caves Hacker-Skirmisher | -4/Warlord Hacker-Skirmisher | -3/Proximity Caves Hacker-Assassin | -3/Research Hacker-Assassin | -3/Armory Hacker-Assassin | -2/Research Hacker-Assassin | -2/Testing Hacker-Mutant | -1/Access Wizard-Mutant | -1/Command Resources | -11 -10 -10 -10 -9 -8 -8 -7 -6 -6 -6 -6 -5 -5 -5 -5 -5 -5 -4 -4 -4 -4 -3 -3 -3 -2 -2 -1 -1 ----------- Run | Scr Mat Min Exi Min Mat Sto Fac Fac Low Low Zio Pro Fac Ext Cet Arc Hub Fac Upp Upp War Pro Res Arm Res Tes Acc Com Matter Collected 12445 | 266 436 179 30 242 858 642 672 747 857 63 48 385 397 788 190 . 582 1770 207 74 55 39 91 521 375 1261 600 70 Remotely 794 | . . . . . . 56 112 . . . . . 140 . . . 140 346 . . . . . . . . . . Salvage Created 13677 | 115 575 210 . 248 874 693 920 1100 1020 . . 252 320 794 405 . 2214 1507 269 25 277 . 106 366 . 554 833 . Parts 688 | 4 36 13 . 20 53 39 45 44 45 . . 22 16 38 20 . 118 71 9 2 9 . 6 20 . 35 23 . Haulers Intercepted 9 | . 2 . . . 3 3 1 . . . . . . . . . . . . . . . . . . . . . Recyclers Shooed 9 | 1 2 . . 1 . . . 1 . . . . . . . . . 3 . . . . . . . . 1 . Parts Field Recycled . | . . . . . . . . . . . . . . . . . . . . . . . . . . . . . Retrieved Matter . | . . . . . . . . . . . . . . . . . . . . . . . . . . . . . Parts Self-Destructed 101 | . . . . . . . . . 37 . . 22 . . . . . . 2 2 38 . . . . . . . Prevented 24 | . . . . . . . . . 7 . . . . . . . . . . . 17 . . . . . . . Kills | -11 -10 -10 -10 -9 -8 -8 -7 -6 -6 -6 -6 -5 -5 -5 -5 -5 -5 -4 -4 -4 -4 -3 -3 -3 -2 -2 -1 -1 ------- Run | Scr Mat Min Exi Min Mat Sto Fac Fac Low Low Zio Pro Fac Ext Cet Arc Hub Fac Upp Upp War Pro Res Arm Res Tes Acc Com Combat Hostiles Destroyed 288 | . 17 18 . 12 20 11 15 19 15 . . 4 5 12 6 . 33 23 2 1 32 . 3 10 . 15 15 . Melee 27 | . . . . . . . . . 2 . . . . . 1 . 21 2 . . . . . . . 1 . . Guns 139 | . 12 1 . 5 15 10 10 17 11 . . 4 5 12 . . 1 18 2 1 . . 3 3 . 4 5 . Cannons 22 | . . . . . . 1 . . . . . . . . . . . . . . . . . 6 . 5 10 . AOE 93 | . 5 17 . 7 5 . 5 2 . . . . . . 2 . 9 3 . . 32 . . 1 . 5 . . Classes Destroyed 26 | 2 3 3 . 1 3 . 4 . 2 . . . . . . . 2 . 1 . 3 . . . . 2 . . Worker 10 | . . . . . . . 2 . . . . . . . . . 5 3 . . . . . . . . . . Builder 9 | . . 1 . . 1 . . . . . . . . . . . 3 1 . . . . . . . 1 2 . Tunneler 2 | 1 . . . . . . . . . . . . . . . . . 1 . . . . . . . . . . Hauler 9 | . 2 . . . 3 3 1 . . . . . . . . . . . . . . . . . . . . . Recycler 5 | 1 . 1 . . . 2 1 . . . . . . . . . . . . . . . . . . . . . Mechanic 1 | . . . . . . . . . . . . . . . . . 1 . . . . . . . . . . . Operator 1 | . . . . . 1 . . . . . . . . . . . . . . . . . . . . . . . Watcher 4 | . . . . . 1 . . . . . . . . 1 . . . . . . . . . 2 . . . . Swarmer 47 | . 6 3 . 8 7 3 . . . . . . . . . . 5 4 . 1 4 . 3 3 . . . . Grunt 109 | . 11 . . 2 5 5 10 14 5 . . . 3 8 5 . 16 6 . . 15 . . . . 3 1 . Brawler 10 | . . . . . . . 1 2 4 . . . . . . . . . . . 3 . . . . . . . Duelist 5 | . . . . . . . . . 2 . . . . . . . 1 . 1 . 1 . . . . . . . Protector 2 | . . . . . . . . . . . . . . . . . . . . . 2 . . . . . . . Researcher 1 | . . . . . . . . . . . . . . . . . . . . . . . . . . 1 . . Sentry 24 | . . . . 2 5 3 . 1 . . . . . 3 . . 2 4 . . . . . 1 . 2 1 . Demolisher 1 | . . 1 . . . . . . . . . . . . . . . . . . . . . . . . . . Specialist 6 | . . . . . . . . . . . . . . . . . 2 4 . . . . . . . . . . Hunter 29 | . . . . . 3 . 2 . 3 . . 2 . . . . 2 1 . . 2 . . . . 3 11 . Programmer 29 | . . . . . . . 1 2 . . . 2 2 . . . 4 2 1 . 3 . . 6 . 5 1 . Heavy 5 | . . . . . . . 1 . . . . . . . . . 1 2 . . . . . . . . 1 . Behemoth 1 | . . . . . . . . . 1 . . . . . . . . . . . . . . . . . . . Cetus Guard 1 | . . . . . . . . . . . . . . . 1 . . . . . . . . . . . . . Striker 2 | . . . . . . . . . . . . . . . . . . . . . 1 . . . . 1 . . Executioner 1 | . . . . . . . . . . . . . . . . . . . . . 1 . . . . . . . Alpha 7 1 | . . . . . . . . . . . . . . . . . . . . . . . . . . 1 . . Samaritan 3 | . . . . . . . . . . . . . . . . . . . 3 . . . . . . . . . Assembled 14 | . . 14 . . . . . . . . . . . . . . . . . . . . . . . . . . Butcher 1 | . . . . . . . . . . . . . . 1 . . . . . . . . . . . . . . Best Kill Streak 14 | 2 3 14 . 3 5 3 4 4 6 . . 2 2 5 5 . 10 5 1 1 13 . 3 3 . 3 9 . Combat Bots Only 14 | . 3 14 . 3 4 3 4 4 6 . . 2 2 5 5 . 9 5 1 1 13 . 3 3 . 3 7 . Max Kills in Single Turn 6 | 1 2 6 . 3 2 2 2 1 1 . . 1 1 1 2 . 3 2 1 1 6 . 1 1 . 2 2 . Gunslinging 1 | . 1 . . . . 1 . . . . . . . . . . . . . . . . . . . . . . Exploded 6 | . 2 6 . 3 1 . 2 1 . . . . . . 1 . 3 1 . . 6 . . 1 . 2 . . Melee 1 | . . . . . . . . . 1 . . . . . 1 . 1 1 . . . . . . . 1 . . Uniques/NPCs Destroyed . | . . . . . . . . . . . . . . . . . . . . . . . . . . . . . Combat | -11 -10 -10 -10 -9 -8 -8 -7 -6 -6 -6 -6 -5 -5 -5 -5 -5 -5 -4 -4 -4 -4 -3 -3 -3 -2 -2 -1 -1 -------- Run | Scr Mat Min Exi Min Mat Sto Fac Fac Low Low Zio Pro Fac Ext Cet Arc Hub Fac Upp Upp War Pro Res Arm Res Tes Acc Com Damage Taken 39005 | . 416 369 . 543 1033 518 881 996 2776 . . 700 376 1224 1003 . 5448 5337 438 156 658 . 218 1820 188 4610 5582 3715 Core 4037 | . 29 87 . 30 25 6 156 113 256 . . 38 13 47 86 . 400 587 41 14 67 . 48 177 30 148 474 1165 Absorbed by Shields 1406 | . . . . . . . . . . . . . 119 383 81 . . 194 . . . . . 347 . . 282 . Reduced by Siege Mode 19 | . . . . . . . . . . . . . 4 12 . . . . . . . . . . . . 3 . Core Remaining (%) 68 | 100 . . . 41 . 94 77 . . . . 52 . . . . 45 . . . . 38 . 82 . 87 . . Volleys Fired 718 | 5 50 18 . 23 54 33 41 54 56 . . 21 24 44 7 . 18 75 7 3 30 . 11 34 1 36 66 7 Largest 3 | 2 2 2 . 2 3 3 3 3 3 . . 3 3 3 3 . 3 3 2 2 2 . 2 3 1 3 3 1 Hottest 184 | 40 80 46 . 46 79 106 78 90 90 . . 83 78 81 91 . 91 105 68 68 90 . 71 149 35 184 146 50 Shots Fired 1612 | 10 88 27 . 39 150 88 109 154 150 2 . 61 62 120 11 . 26 203 14 6 31 . 15 63 1 72 103 7 Gun 1358 | 10 78 18 . 33 144 75 103 150 144 2 . 61 58 119 6 . 17 197 14 6 2 . 15 19 1 29 57 . Cannon 149 | . . . . . . 10 . . . . . . . . . . . . . . 10 . . 44 . 39 46 . Launcher 79 | . 10 9 . 6 6 3 6 4 6 . . . 4 1 5 . 9 6 . . . . . . . 4 . . Special 26 | . . . . . . . . . . . . . . . . . . . . . 19 . . . . . . 7 Kinetic 1398 | 10 30 18 . 33 144 75 103 150 144 2 . 61 58 119 6 . 17 197 14 6 2 . 15 59 1 68 66 . Thermal 11 | . . . . . . 1 . . . . . . . . . . . . . . 10 . . . . . . . Explosive 58 | . 10 9 . 6 6 . . 4 . . . . . . . . . . . . 19 . . . . 4 . . Electromagnetic 97 | . 48 . . . . 12 6 . 6 . . . 4 1 5 . 9 6 . . . . . . . . . . Entropic 41 | . . . . . . . . . . . . . . . . . . . . . . . . 4 . . 37 . Robot Hit Streak 31 | 6 11 9 . 26 13 15 14 14 15 . . 8 8 31 2 . 6 28 16 2 9 . 13 16 . 18 17 8 Robot Miss Streak 6 | 2 3 2 . 2 3 4 1 6 3 . . 5 3 4 2 . 2 2 2 2 1 . 1 3 . 2 5 . Penetration Max 1 | . . . . . . . . 1 1 . . . . . . . 1 1 . . . . 1 . . 1 1 . Secondary Targets 17 | . 1 . . . 1 2 1 3 3 . . 1 1 1 . . . 3 . . . . . . . . . . Max Gunslinging Chain 1 | . 1 . . . 1 1 1 1 1 . . 1 1 1 . . . 1 . . . . . . . . . . Shots Hit Robots 1238 | 7 60 13 3 28 98 56 73 106 115 . 1 38 44 109 12 . 85 166 17 3 15 . 6 44 6 51 73 9 Core Hits 693 | 5 28 39 . 16 48 25 38 52 39 . . 11 14 44 10 . 80 71 8 1 83 . 4 21 1 28 26 1 Critical Kills 17 | . . . . . . 2 . 1 1 . . . . . . . . 2 . 1 . . . 1 . 4 5 . Critical Parts Destroyed 39 | 1 . . . . 3 . . 3 . . . . . 1 . . 1 15 . . . . . 3 . 4 8 . Critical Strikes 108 | 1 1 . . . 3 2 . 4 2 . . . . 1 . . 14 19 . 1 2 . . 11 . 16 31 . Destroy 62 | 1 . . . . 3 2 . 4 2 . . . . 1 . . . 17 . 1 . . . 5 . 10 16 . Blast 11 | . . . . . . . . . . . . . . . . . . . . . . . . 5 . 6 . . Corrupt 1 | . 1 . . . . . . . . . . . . . . . . . . . . . . . . . . . Smash 1 | . . . . . . . . . . . . . . . . . 1 . . . . . . . . . . . Sever 2 | . . . . . . . . . . . . . . . . . . . . . 2 . . . . . . . Puncture 15 | . . . . . . . . . . . . . . . . . 13 2 . . . . . . . . . . Sunder 16 | . . . . . . . . . . . . . . . . . . . . . . . . 1 . . 15 . Melee Attacks 258 | . . . 3 . . 9 1 10 4 1 3 . 12 22 7 . 105 16 11 . . . 4 12 12 17 7 2 Impact 40 | . . . . . . 9 1 8 4 1 2 . . . . . 11 . . . . . 4 . . . . . Slashing 26 | . . . . . . . . . . . . . . . . . . . 2 . . . . 12 12 . . . Piercing 167 | . . . . . . . . . . . . . 12 3 7 . 94 16 9 . . . . . . 17 7 2 Sneak Attacks 43 | . . . 3 . . . 1 3 4 . 1 . 1 19 . . 4 3 3 . . . . . 1 . . . Combat Hostiles . | . . . . . . . . . . . . . . . . . . . . . . . . . . . . . Follow-up Attacks 3 | . . . . . . . . . . . . . . . . . 3 . . . . . . . . . . . Damage Inflicted 49328 | 53 1268 1138 . 818 2274 1175 1813 2396 2786 . . 653 996 1745 779 . 4123 4960 755 85 10814 . 213 2531 338 3634 3904 77 Guns 18350 | 52 737 162 . 434 1502 845 1162 2082 2108 . . 653 749 1613 32 . 227 3943 299 85 50 . 197 414 . 353 651 . Cannons 6676 | . . . . . . 176 . . . . . . . . . . . . . . . . . 2008 . 1239 3253 . Explosions 17969 | . 492 976 . 384 767 142 488 258 407 . . . 150 . 496 . 1182 559 . . 10124 . . 98 . 1446 . . Melee 5418 | . . . . . . . 93 48 271 . . . 97 101 251 . 2702 449 456 . . . . . 338 536 . 76 Ramming 275 | 1 39 . . . 5 12 70 8 . . . . . 31 . . 12 9 . . . . 16 11 . 60 . 1 Kinetic 21141 | 52 270 162 . 434 1502 845 1162 2082 2108 . . 653 749 1613 32 . 227 3943 299 85 50 . 197 2174 . 1592 910 . Thermal 313 | . 76 . . . . . 29 . . . . . . . . . 208 . . . . . . . . . . . Explosive 14779 | . 416 976 . 384 767 . 176 258 . . . . . . . . . 134 . . 10124 . . 98 . 1446 . . Electromagnetic 3520 | . 467 . . . . 318 283 . 407 . . . 150 . 496 . 974 425 . . . . . . . . . . Impact 665 | . . . . . . . 93 48 271 . . . . . . . 253 . . . . . . . . . . . Slashing 1114 | . . . . . . . . . . . . . . . . . . . 136 . 640 . . . 338 . . . Piercing 4279 | . . . . . . . . . . . . . 97 101 251 . 2449 449 320 . . . . . . 536 . 76 Entropic 3242 | . . . . . . . . . . . . . . . . . . . . . . . . 248 . . 2994 . Highest Corruption 33 | . 1 1 1 1 . 6 1 . 10 10 18 4 4 4 . . 33 3 4 . . . . 7 . 10 2 18 Average Corruption 3 | . 1 1 1 1 . 6 1 . 10 10 4 3 3 3 . . 5 1 3 . . . . 4 . 6 1 3 Corruption Purged 30 | . . . . . . . . . . . . . . 4 . . 3 . 4 . . . . 12 . 7 . . Effects 162 | . . 5 1 3 . 3 3 . 14 10 3 13 . 27 . . 21 3 4 . . . . 14 . 27 2 9 Message Errors 39 | . . 3 . 2 . 1 1 . . 3 1 4 . 8 . . 5 1 1 . . . . 2 . 6 . 1 Matter Fused 31 | . . . . . . 1 . . 1 2 . 3 . 5 . . 5 . 1 . . . . 2 . 9 . 2 Heat Flow Errors 19 | . . . . . . . . . 3 . . . . 5 . . 1 1 1 . . . . 3 . 3 . 2 Energy Discharges 28 | . . . 1 1 . 1 . . 3 . 1 1 . 6 . . 6 1 . . . . . . . 4 1 2 Parts Rejected 3 | . . . . . . . . . 1 . . 1 . . . . . . . . . . . . . 1 . . Data Loss (minor) 25 | . . 2 . . . . 2 . 3 1 1 2 . 3 . . 2 . 1 . . . . 4 . 3 . 1 Data Loss (major) 2 | . . . . . . . . . 1 1 . . . . . . . . . . . . . . . . . . Misfires 4 | . . . . . . . . . . 2 . . . . . . 1 . . . . . . 1 . . . . Alerts 1 | . . . . . . . . . . 1 . . . . . . . . . . . . . . . . . . Misdirections 2 | . . . . . . . . . . . . . . . . . 1 . . . . . . . . . . 1 Weapon Failures 8 | . . . . . . . . . 2 . . 2 . . . . . . . . . . . 2 . 1 1 . Overload Shots . | . . . . . . . . . . . . . . . . . . . . . . . . . . . . . Overflow Damage 1832 | . 35 42 . . 40 . 76 . 48 . . . 57 29 . . 102 85 124 . 270 . . 307 96 60 461 . Projectiles 808 | . . . . . . . . . . . . . . . . . . . . . 31 . . 307 . 9 461 . Explosions 408 | . 35 42 . . 40 . . . . . . . . . . . . 1 . . 239 . . . . 51 . . Melee 616 | . . . . . . . 76 . 48 . . . 57 29 . . 102 84 124 . . . . . 96 . . . Knockbacks 21 | . 1 . . . . . 1 1 . . . . . . . . . . . . . . . 8 . 9 1 . Impact 4 | . 1 . . . . . 1 1 . . . . . . . . . . . . . . . . . 1 . . Kinetic 16 | . . . . . . . . . . . . . . . . . . . . . . . . 8 . 7 1 . Secondary 1 | . . . . . . . . . . . . . . . . . . . . . . . . . . 1 . . Self-Inflicted Damage 562 | . 60 9 . . 48 . 71 . 21 . . . . . . . 100 4 . . . . . 79 . 170 . . Shots 14 | . 3 1 . . 2 . 2 . 2 . . . . . . . 2 . . . . . . 1 . 1 . . Rammed 27 | 1 5 . . . 1 1 3 1 . . . . . 3 . . 2 2 . . . . 1 4 . 2 . 1 Targets Rammed 29 | 1 5 . . . 2 2 3 1 . . . . . 3 . . 2 2 . . . . 1 4 . 2 . 1 Kicked . | . . . . . . . . . . . . . . . . . . . . . . . . . . . . . Crushed 2 | . . . . . 1 1 . . . . . . . . . . . . . . . . . . . . . . Highest Temperature 431 | . 144 . . 34 133 182 171 351 211 . . 183 130 416 15 . 242 235 234 . 108 . . 226 . 294 431 168 Average Temperature 72 | . 53 . . 10 32 44 49 126 88 . . 69 55 133 5 . 50 56 132 . 41 . . 84 . 90 160 64 Received Heat Transfer 4848 | . 174 . . 225 252 207 180 507 498 . . . 96 344 213 . 801 676 9 9 99 . 36 46 27 333 32 84 Effects 8 | . . . . . . . . 1 2 . . . . 2 . . . . . . . . . . . . 3 . Shutdowns 2 | . . . . . . . . . . . . . . . . . . . . . . . . . . . 2 . Energy Bleed 2 | . . . . . . . . . 1 . . . . . . . . . . . . . . . . . 1 . Interference 2 | . . . . . . . . . 1 . . . . 1 . . . . . . . . . . . . . . Matter Decay 1 | . . . . . . . . . . . . . . 1 . . . . . . . . . . . . . . Short Circuit 1 | . . . . . . . . 1 . . . . . . . . . . . . . . . . . . . . Siege Activations 4 | . . . . . . . . . . . . . 1 2 . . . . . . . . . . . . 1 . Total Turns 76 | . . . . . . . . . . . . . 11 60 . . . . . . . . . . . . 5 . Longest Duration 31 | . . . . . . . . . . . . . 11 31 . . . . . . . . . . . . 5 . Robots Corrupted 7 | . 1 . . . . . . . 2 . . . . . 3 . 1 . . . . . . . . . . . Combat Hostiles 6 | . . . . . . . . . 2 . . . . . 3 . 1 . . . . . . . . . . . Parts Fried 17 | . 2 . . . . . 2 . 1 . . . 1 . 2 . 5 4 . . . . . . . . . . Impact Corruptions 5 | . . . . . . . 3 . 1 . . . . . . . 1 . . . . . . . . . . . Robots Melted . | . . . . . . . . . . . . . . . . . . . . . . . . . . . . . Combat Hostiles . | . . . . . . . . . . . . . . . . . . . . . . . . . . . . . Parts Melted . | . . . . . . . . . . . . . . . . . . . . . . . . . . . . . Heat Transferred 400 | . 100 . . . . . 50 . . . . . . . . . 250 . . . . . . . . . . . Parts Sabotaged . | . . . . . . . . . . . . . . . . . . . . . . . . . . . . . Parts Stolen . | . . . . . . . . . . . . . . . . . . . . . . . . . . . . . Parts Stripped . | . . . . . . . . . . . . . . . . . . . . . . . . . . . . . Power Chain Reactions 8 | . 2 . . . . . 1 . . . . . . . . . 3 2 . . . . . . . . . . Missiles Intercepted . | . . . . . . . . . . . . . . . . . . . . . . . . . . . . . Alert | -11 -10 -10 -10 -9 -8 -8 -7 -6 -6 -6 -6 -5 -5 -5 -5 -5 -5 -4 -4 -4 -4 -3 -3 -3 -2 -2 -1 -1 ------- Run | Scr Mat Min Exi Min Mat Sto Fac Fac Low Low Zio Pro Fac Ext Cet Arc Hub Fac Upp Upp War Pro Res Arm Res Tes Acc Com Peak Influence 828 | 10 393 199 . 193 369 317 359 494 . . . . 101 435 418 167 801 828 . . . . 106 376 195 303 246 258 Initial 320 | . 6 94 . . 16 49 3 175 . . . . . 27 182 167 58 320 . . . . . 17 123 . . 131 Average 191 | 6 196 60 . 113 164 121 151 333 . . . . 29 221 275 167 474 511 . . . . 15 180 117 109 105 128 Maximum Alert Level 3 | . 1 . . . 1 1 1 2 . . . . . 2 2 . 3 3 . . . . . 1 . 1 1 1 Low Security (%) 58 | 100 43 100 . 100 61 83 56 7 . . . . 100 46 19 100 5 . . . . . 100 56 100 80 78 60 Level 1 31 | . 56 . . . 38 16 43 68 . . . . . 47 52 . 27 26 . . . . . 43 . 19 21 39 Level 2 9 | . . . . . . . . 24 . . . . . 5 28 . 59 61 . . . . . . . . . . Level 3 1 | . . . . . . . . . . . . . . . . . 7 12 . . . . . . . . . . Level 4 . | . . . . . . . . . . . . . . . . . . . . . . . . . . . . . Level 5 . | . . . . . . . . . . . . . . . . . . . . . . . . . . . . . High Security . | . . . . . . . . . . . . . . . . . . . . . . . . . . . . . Max Security . | . . . . . . . . . . . . . . . . . . . . . . . . . . . . . Squads Dispatched 71 | . 4 . . 1 3 5 5 10 . . . . 2 5 . . 11 10 . . . . 3 3 . 3 3 3 Investigation 16 | . 4 . . . . 2 2 2 . . . . . 3 . . 1 2 . . . . . . . . . . Extermination 16 | . . . . . . . 1 2 . . . . 1 . . . 3 2 . . . . 1 2 . 2 1 1 Reinforcement 30 | . . . . . 3 1 2 3 . . . . 1 2 . . 5 5 . . . . 2 1 . 1 2 2 Assault 5 | . . . . 1 . 2 . . . . . . . . . . 1 1 . . . . . . . . . . Garrison 4 | . . . . . . . . 3 . . . . . . . . 1 . . . . . . . . . . . Intercept . | . . . . . . . . . . . . . . . . . . . . . . . . . . . . . Construction Impeded 4 | . . . . . 1 . . . . . . . . 1 . . 1 . . . . . . . . . 1 . Haulers Reinforced 2 | . . . . . . . 1 1 . . . . . . . . . . . . . . . . . . . . Active Scanning Responses . | . . . . . . . . . . . . . . . . . . . . . . . . . . . . . Cargo Convoy Interrupts 1 | . . . . . . . 1 . . . . . . . . . . . . . . . . . . . . . Stealth | -11 -10 -10 -10 -9 -8 -8 -7 -6 -6 -6 -6 -5 -5 -5 -5 -5 -5 -4 -4 -4 -4 -3 -3 -3 -2 -2 -1 -1 --------- Run | Scr Mat Min Exi Min Mat Sto Fac Fac Low Low Zio Pro Fac Ext Cet Arc Hub Fac Upp Upp War Pro Res Arm Res Tes Acc Com Distress Signals 32 | . 4 . . . 3 2 5 . . . . . 1 1 . . 1 . . . 2 . . 1 9 1 1 1 Communications Jammed . | . . . . . . . . . . . . . . . . . . . . . . . . . . . . . Distress Signals . | . . . . . . . . . . . . . . . . . . . . . . . . . . . . . Times Spotted 532 | . 32 20 . 16 43 35 23 25 15 . . 4 11 43 12 . 56 34 4 2 38 . 9 26 3 35 24 22 Peak Tracking Total 16 | . 6 14 . 4 5 10 5 5 7 . . 2 3 8 5 . 10 7 3 2 16 . 11 6 2 7 7 5 Tactical Retreats 29 | . 3 . . . 2 . 3 2 1 . . . 1 3 . . 5 2 2 1 1 . . . . 1 1 1 Traps | -11 -10 -10 -10 -9 -8 -8 -7 -6 -6 -6 -6 -5 -5 -5 -5 -5 -5 -4 -4 -4 -4 -3 -3 -3 -2 -2 -1 -1 ------- Run | Scr Mat Min Exi Min Mat Sto Fac Fac Low Low Zio Pro Fac Ext Cet Arc Hub Fac Upp Upp War Pro Res Arm Res Tes Acc Com Traps Triggered 15 | . 1 . . . . 2 3 1 . . . . . 2 . . 4 . . . . . . . . 2 . . Indirectly 6 | . . . . . . 1 . . . . . . . 2 . . 3 . . . . . . . . . . . Trap Hack Attempts . | . . . . . . . . . . . . . . . . . . . . . . . . . . . . . Triggered . | . . . . . . . . . . . . . . . . . . . . . . . . . . . . . Disarmed . | . . . . . . . . . . . . . . . . . . . . . . . . . . . . . Reprogrammed . | . . . . . . . . . . . . . . . . . . . . . . . . . . . . . Reused . | . . . . . . . . . . . . . . . . . . . . . . . . . . . . . Traps Extracted . | . . . . . . . . . . . . . . . . . . . . . . . . . . . . . Installed 3 | . . 3 . . . . . . . . . . . . . . . . . . . . . . . . . . Triggered 12 | . . . . . . . 1 . . . . . . . . . 1 . . 1 8 . . . . . . 1 Machines | -11 -10 -10 -10 -9 -8 -8 -7 -6 -6 -6 -6 -5 -5 -5 -5 -5 -5 -4 -4 -4 -4 -3 -3 -3 -2 -2 -1 -1 ---------- Run | Scr Mat Min Exi Min Mat Sto Fac Fac Low Low Zio Pro Fac Ext Cet Arc Hub Fac Upp Upp War Pro Res Arm Res Tes Acc Com Machines Disabled 53 | . 1 1 . 2 1 2 4 2 . 1 . . . 6 6 . 5 11 . . 1 . . 6 . 4 . . Max in Single Turn 5 | . 1 1 . 1 1 1 2 1 . 1 . . . 2 4 . 5 4 . . 1 . . 1 . 1 . . Garrison Access 7 | . . . . . 1 . . 1 . . . . . . . . 1 1 . . . . . . 2 1 . . Network Hub 1 | . . . . . . . . . . . . . . . . . 1 . . . . . . . . . . . Energy Cycler 1 | . . . . . . . . . . . . . . 1 . . . . . . . . . . . . . . Machines Sabotaged . | . . . . . . . . . . . . . . . . . . . . . . . . . . . . . Garrisons Compromised 1 | . . . . . . . 1 . . . . . . . . . . . . . . . . . . . . . Overloaded Fab Kills . | . . . . . . . . . . . . . . . . . . . . . . . . . . . . . Hacking | -11 -10 -10 -10 -9 -8 -8 -7 -6 -6 -6 -6 -5 -5 -5 -5 -5 -5 -4 -4 -4 -4 -3 -3 -3 -2 -2 -1 -1 --------- Run | Scr Mat Min Exi Min Mat Sto Fac Fac Low Low Zio Pro Fac Ext Cet Arc Hub Fac Upp Upp War Pro Res Arm Res Tes Acc Com Machines Accessed 105 | . 10 . 1 . 9 13 3 8 . 1 . . 2 10 . . 8 7 2 . 4 . 2 4 . 11 3 7 Terminals 76 | . 7 . . . 5 11 2 6 . . . . 1 10 . . 7 4 . . . . 2 4 . 7 3 7 Fabricators 3 | . . . . . . . . . . . . . 1 . . . . 1 . . . . . . . 1 . . Repair Stations 7 | . 1 . . . 2 1 1 . . . . . . . . . . . . . . . . . . 2 . . Recycling Units 4 | . 2 . . . . 1 . 1 . . . . . . . . . . . . . . . . . . . . Scanalyzers 2 | . . . . . 1 . . . . . . . . . . . . 1 . . . . . . . . . . Garrison Access 5 | . . . . . 1 . . 1 . . . . . . . . 1 1 . . . . . . . 1 . . Total Hacks 304 | . 33 . 1 . 21 29 6 16 . 1 . . 4 28 . . 19 26 6 . 11 . 20 19 . 29 5 30 Successful 178 | . 22 . 1 . 15 13 2 6 . 1 . . 1 9 . . 9 12 6 . 11 . 15 16 . 20 3 16 Failed 125 | . 10 . . . 6 16 4 10 . . . . 3 19 . . 10 14 . . . . 5 3 . 9 2 14 Catastrophic 22 | . 1 . . . 2 3 2 3 . . . . 1 2 . . 1 4 . . . . . . . 2 . 1 Database Lockouts 1 | . 1 . . . . . . . . . . . . . . . . . . . . . . . . . . . Manual 124 | . 20 . . . 8 8 2 4 . . . . . 7 . . 10 11 . . . . 16 8 . 8 . 22 Terminals 245 | . 27 . . . 13 26 4 12 . . . . 3 28 . . 18 20 . . . . 20 19 . 20 5 30 Fabricators 4 | . . . . . . . . . . . . . 1 . . . . 2 . . . . . . . 1 . . Repair Stations 20 | . 4 . . . 5 2 2 . . . . . . . . . . . . . . . . . . 7 . . Recycling Units 5 | . 2 . . . . 1 . 2 . . . . . . . . . . . . . . . . . . . . Scanalyzers 4 | . . . . . 2 . . . . . . . . . . . . 2 . . . . . . . . . . Garrison Access 7 | . . . . . 1 . . 2 . . . . . . . . 1 2 . . . . . . . 1 . . Terminal Hacks 119 | . 8 . 1 . 7 9 . 2 . 1 . . 1 9 . . 4 7 6 . 11 . 11 13 . 12 3 14 Record 21 | . . . 1 . . . . . . 1 . . . . . . . 1 5 . 10 . . 1 . 2 . . Part Schematic 3 | . . . . . 1 . . . . . . . . . . . . 1 . . . . . . . 1 . . Robot Analysis 7 | . . . . . . . . . . . . . . . . . . . . . . . . 1 . 3 . 3 Prototype ID Bank 20 | . 4 . . . 3 1 . 1 . . . . . 1 . . 2 . . . . . 2 3 . 1 . 2 Open Door 16 | . . . . . . 3 . . . . . . . 6 . . . . 1 . 1 . . . . 1 3 1 Level Access Points 2 | . . . . . . 1 . . . . . . . . . . . . . . . . . 1 . . . . Branch Access Points 3 | . . . . . . . . 1 . . . . . . . . . 1 . . . . 1 . . . . . Emergency Access Points 1 | . . . . . . . . . . . . . . . . . . . . . . . . 1 . . . . Terminal Index 1 | . . . . . . . . . . . . . . . . . . . . . . . 1 . . . . . Repair Station Index 1 | . . . . . . . . . . . . . . . . . . . . . . . 1 . . . . . Alert Level 5 | . . . . . . . . . . . . . . . . . . 1 . . . . 1 2 . . . 1 Unreport Threat 19 | . . . . . 1 3 . . . . . . 1 2 . . 2 2 . . . . 1 1 . 4 . 2 Locate Traps 7 | . 3 . . . 1 1 . . . . . . . . . . . . . . . . 1 1 . . . . Dispatch Records 1 | . . . . . . . . . . . . . . . . . . . . . . . . 1 . . . . Security Status 1 | . . . . . . . . . . . . . . . . . . . . . . . 1 . . . . . Patrol Status 1 | . . . . . . . . . . . . . . . . . . . . . . . 1 . . . . . Recall Reinforcements 1 | . . . . . . . . . . . . . . . . . . . . . . . . . . . . 1 Hauler Manifests 2 | . 1 . . . 1 . . . . . . . . . . . . . . . . . . . . . . . Registered Prototypes 1 | . . . . . . . . . . . . . . . . . . . . . . . . 1 . . . . Zone Layout 5 | . . . . . . . . . . . . . . . . . . 1 . . . . 1 . . . . 3 Disengage Seal 1 | . . . . . . . . . . . . . . . . . . . . . . . . . . . . 1 Fabricator Hacks 2 | . . . . . . . . . . . . . . . . . . 1 . . . . . . . 1 . . Network Status 1 | . . . . . . . . . . . . . . . . . . . . . . . . . . 1 . . Load Schematic 1 | . . . . . . . . . . . . . . . . . . 1 . . . . . . . . . . Repair Station Hacks 15 | . 3 . . . 4 1 2 . . . . . . . . . . . . . . . . . . 5 . . Scan Component 9 | . 2 . . . 2 1 1 . . . . . . . . . . . . . . . . . . 3 . . Repair 6 | . 1 . . . 2 . 1 . . . . . . . . . . . . . . . . . . 2 . . Recycling Unit Hacks 2 | . . . . . . . . 2 . . . . . . . . . . . . . . . . . . . . Retrieve Matter 1 | . . . . . . . . 1 . . . . . . . . . . . . . . . . . . . . Retrieve Components 1 | . . . . . . . . 1 . . . . . . . . . . . . . . . . . . . . Scanalyzer 4 | . . . . . 2 . . . . . . . . . . . . 2 . . . . . . . . . . Insert Component 2 | . . . . . 1 . . . . . . . . . . . . 1 . . . . . . . . . . Analyze 2 | . . . . . 1 . . . . . . . . . . . . 1 . . . . . . . . . . Garrison Access Hacks 5 | . . . . . 1 . . 1 . . . . . . . . 1 1 . . . . . . . 1 . . Seal Access 5 | . . . . . 1 . . 1 . . . . . . . . 1 1 . . . . . . . 1 . . Unauthorized Hacks 31 | . 11 . . . 1 3 . 1 . . . . . . . . 4 1 . . . . 4 3 . 1 . 2 Terminals 28 | . 9 . . . 1 2 . 1 . . . . . . . . 4 1 . . . . 4 3 . 1 . 2 Track 4 | . 3 . . . . . . . . . . . . . . . . . . . . . 1 . . . . . Assimilate 1 | . . . . . . . . . . . . . . . . . . . . . . . . . . . . 1 Botnet 21 | . 5 . . . 1 2 . 1 . . . . . . . . 4 1 . . . . 2 3 . 1 . 1 Operators 2 | . 1 . . . . . . . . . . . . . . . . . . . . . 1 . . . . . Fabricators . | . . . . . . . . . . . . . . . . . . . . . . . . . . . . . Repair Stations . | . . . . . . . . . . . . . . . . . . . . . . . . . . . . . Recycling Units 3 | . 2 . . . . 1 . . . . . . . . . . . . . . . . . . . . . . Tunnel 3 | . 2 . . . . 1 . . . . . . . . . . . . . . . . . . . . . . Scanalyzers . | . . . . . . . . . . . . . . . . . . . . . . . . . . . . . Garrison Access . | . . . . . . . . . . . . . . . . . . . . . . . . . . . . . Data Cores Recovered . | . . . . . . . . . . . . . . . . . . . . . . . . . . . . . Used . | . . . . . . . . . . . . . . . . . . . . . . . . . . . . . Hacking Detections 74 | . 8 . . . 5 11 3 8 . . . . 2 8 . . 7 6 . . . . 1 3 . 6 . 6 Full Trace Events 10 | . 1 . . . . . 2 2 . . . . . 2 . . 1 2 . . . . . . . . . . Feedback Events 3 | . 1 . . . . . 1 . . . . . . . . . . 1 . . . . . . . . . . Corruption 3 | . 1 . . . . . 1 . . . . . . . . . . 1 . . . . . . . . . . Feedback Blocked . | . . . . . . . . . . . . . . . . . . . . . . . . . . . . . Robot Schematics Acquired . | . . . . . . . . . . . . . . . . . . . . . . . . . . . . . Robots Built . | . . . . . . . . . . . . . . . . . . . . . . . . . . . . . Authchips . | . . . . . . . . . . . . . . . . . . . . . . . . . . . . . Time . | . . . . . . . . . . . . . . . . . . . . . . . . . . . . . Total Robot Build Rating . | . . . . . . . . . . . . . . . . . . . . . . . . . . . . . Part Schematics Acquired 5 | . . . . . 2 . . . . . . . . . . . . 2 . . . . . . . 1 . . Parts Built . | . . . . . . . . . . . . . . . . . . . . . . . . . . . . . Authchips . | . . . . . . . . . . . . . . . . . . . . . . . . . . . . . Time . | . . . . . . . . . . . . . . . . . . . . . . . . . . . . . Total Part Build Rating . | . . . . . . . . . . . . . . . . . . . . . . . . . . . . . Parts Repaired 6 | . 1 . . . 2 . 1 . . . . . . . . . . . . . . . . . . 2 . . Time 174 | . 13 . . . 64 . 38 . . . . . . . . . . . . . . . . . . 59 . . Parts Recycled . | . . . . . . . . . . . . . . . . . . . . . . . . . . . . . Recycled Matter . | . . . . . . . . . . . . . . . . . . . . . . . . . . . . . Retrieved Matter 406 | . . . . . . . . 406 . . . . . . . . . . . . . . . . . . . . Retrieved Components 10 | . . . . . . . . 10 . . . . . . . . . . . . . . . . . . . . Parts Scanalyzed 2 | . . . . . 1 . . . . . . . . . . . . 1 . . . . . . . . . . Part Schematics Acquired 2 | . . . . . 1 . . . . . . . . . . . . 1 . . . . . . . . . . Parts Damaged . | . . . . . . . . . . . . . . . . . . . . . . . . . . . . . Bothacking | -11 -10 -10 -10 -9 -8 -8 -7 -6 -6 -6 -6 -5 -5 -5 -5 -5 -5 -4 -4 -4 -4 -3 -3 -3 -2 -2 -1 -1 ------------ Run | Scr Mat Min Exi Min Mat Sto Fac Fac Low Low Zio Pro Fac Ext Cet Arc Hub Fac Upp Upp War Pro Res Arm Res Tes Acc Com Used RIF Installer . | . . . . . . . . . . . . . . . . . . . . . . . . . . . . . Robots Hacked 9 | . . . 3 . . . . 1 . . 1 . . . . . . . . . . . . . . . . 4 Non-combat 4 | . . . 2 . . . . 1 . . 1 . . . . . . . . . . . . . . . . . Combat 5 | . . . 1 . . . . . . . . . . . . . . . . . . . . . . . . 4 Robot Hacks Applied 10 | . . . 3 . . . . 2 . . 1 . . . . . . . . . . . . . . . . 4 parse_system 9 | . . . 3 . . . . 1 . . 1 . . . . . . . . . . . . . . . . 4 find_chute 1 | . . . . . . . . 1 . . . . . . . . . . . . . . . . . . . . Manual 1 | . . . . . . . . . . . . . . . . . . . . . . . . . . . . 1 Relay Couplers Released 4 | . . . . . . . . . . . . . . . . . . . . . . . . . . . 4 . Programmers 4 | . . . . . . . . . . . . . . . . . . . . . . . . . . . 4 . Fabnet Peak Effective % . | . . . . . . . . . . . . . . . . . . . . . . . . . . . . . Robots Rewired 15 | . 1 . . . . . . . . . . . . 7 . . . . . . . . . 7 . . . . Allies Hacked . | . . . . . . . . . . . . . . . . . . . . . . . . . . . . . Hacks Repelled . | . . . . . . . . . . . . . . . . . . . . . . . . . . . . . Allies | -11 -10 -10 -10 -9 -8 -8 -7 -6 -6 -6 -6 -5 -5 -5 -5 -5 -5 -4 -4 -4 -4 -3 -3 -3 -2 -2 -1 -1 -------- Run | Scr Mat Min Exi Min Mat Sto Fac Fac Low Low Zio Pro Fac Ext Cet Arc Hub Fac Upp Upp War Pro Res Arm Res Tes Acc Com Total Allies 49 | . 1 . . 1 . 12 . . . . . . . 20 . . . . . . . . . 14 . . . 1 Largest Group 13 | . 1 . . 1 1 10 2 . . . . . . 13 5 1 . . . . . . . 10 3 . . 1 Highest-Rated Group 486 | . 8 . . 31 31 173 62 . . . . . . 486 336 159 . . . . . . . 481 126 . . 26 Highest-Rated Ally 159 | . 8 . . 31 31 31 31 . . . . . . 159 159 159 . . . . . . . 58 42 . . 26 Total Orders 34 | . . . . . . 3 . 2 12 2 . 2 . . . . . . . . 3 . . . . . . 10 STAY 3 | . . . . . . 2 . . . . . . . . . . . . . . . . . . . . . 1 FOLLOW 2 | . . . . . . 1 . . . . . . . . . . . . . . . . . . . . . 1 EXPLORE 20 | . . . . . . . . 1 8 1 . 2 . . . . . . . . 2 . . . . . . 6 RETURN 9 | . . . . . . . . 1 4 1 . . . . . . . . . . 1 . . . . . . 2 Ally Attacks 386 | . 4 . . 6 9 70 13 . . . . . . 180 30 . . . . . . . . 63 11 . . . Total Damage 9113 | . 35 . . 84 147 895 169 . . . . . . 4417 1257 . . . . . . . . 1853 256 . . . Kills 57 | . . . . 3 1 10 1 . . . . . . 27 5 . . . . . . . . 9 1 . . . Allies Corrupted . | . . . . . . . . . . . . . . . . . . . . . . . . . . . . . Allies Melted 1 | . . . . . . . . . . . . . . 1 . . . . . . . . . . . . . . Intel | -11 -10 -10 -10 -9 -8 -8 -7 -6 -6 -6 -6 -5 -5 -5 -5 -5 -5 -4 -4 -4 -4 -3 -3 -3 -2 -2 -1 -1 ------- Run | Scr Mat Min Exi Min Mat Sto Fac Fac Low Low Zio Pro Fac Ext Cet Arc Hub Fac Upp Upp War Pro Res Arm Res Tes Acc Com Robot Analysis Total 7 | . . . . . . . . . . . . . . . . . . . . . . . . 1 . 3 . 3 Derelict Logs Recovered 6 | . . 1 . 1 . . . . . . 1 1 . . . . . . 1 1 . . . . . . . . Drone Launches 21 | . . . . . . . . 1 9 1 . 2 . . . . . . . . 2 . . . . . . 6 Drone Recoveries 17 | . . . . . . . . 1 8 1 . 1 . . . . . . . . 2 . . . . . . 4 Exploration | -11 -10 -10 -10 -9 -8 -8 -7 -6 -6 -6 -6 -5 -5 -5 -5 -5 -5 -4 -4 -4 -4 -3 -3 -3 -2 -2 -1 -1 ------------- Run | Scr Mat Min Exi Min Mat Sto Fac Fac Low Low Zio Pro Fac Ext Cet Arc Hub Fac Upp Upp War Pro Res Arm Res Tes Acc Com Turns Passed 25449 | 151 1504 877 262 914 2503 1374 1175 1454 997 370 1498 471 693 1618 269 57 1007 1030 868 406 736 435 524 1004 609 1503 608 532 Spaces Moved 13965 | 83 786 498 158 507 1118 499 655 783 464 217 893 243 316 803 121 34 354 447 547 369 562 411 422 591 382 776 270 656 Core 703 | 12 . . . . . . . . . . . . . . . . . . . . . . . . . . 80 611 Treads 8941 | 71 786 498 158 507 564 49 655 783 464 217 893 243 316 803 121 34 354 256 4 . . . 1 6 192 776 190 . Legs 144 | . . . . . . . . . . . . . . . . . . 132 . . . . . . . . . 12 Wheels 4144 | . . . . . 554 450 . . . . . . . . . . . 59 543 369 562 411 421 585 190 . . . Hover 33 | . . . . . . . . . . . . . . . . . . . . . . . . . . . . 33 Flight . | . . . . . . . . . . . . . . . . . . . . . . . . . . . . . Fastest Speed 50 | 50 160 160 160 160 140 215 150 157 160 164 163 163 163 164 168 168 165 95 95 90 90 90 90 106 129 158 50 50 Average Speed 147 | 144 160 160 160 160 190 220 150 159 162 164 163 163 163 165 168 168 167 147 112 105 90 90 94 121 144 160 129 54 Slowest Speed 260 | 160 160 160 160 160 241 246 231 162 166 164 164 163 164 168 168 168 240 260 160 125 90 90 170 237 161 240 225 120 Overloaded Moves . | . . . . . . . . . . . . . . . . . . . . . . . . . . . . . Propulsion Burnouts . | . . . . . . . . . . . . . . . . . . . . . . . . . . . . . Robots Hopped . | . . . . . . . . . . . . . . . . . . . . . . . . . . . . . Cave-ins Triggered 1 | . . . . . . . . . . . . . . . . . 1 . . . . . . . . . . . Exploration Rate (%) 53 | 5 98 99 54 97 53 72 16 24 78 56 86 62 12 88 68 72 39 12 74 57 81 67 14 39 17 71 10 26 Regions Visited 28 Branch Regions 19 Pre-discovered Areas 8 | . 2 . 1 . . 1 . . . . 1 . . . . . . . 1 1 1 . . . . . . . Known Exits Taken 15 | . . . . 1 1 1 . 1 . . . . 1 . . . . 1 1 1 1 1 1 1 1 1 1 . Unknown Exits Taken 13 | 1 1 1 1 . . . 1 . 1 1 1 1 . 1 1 1 1 . . . . . . . . . . . Scrap Searched 24 | . . 1 . 3 . . . . 2 6 3 1 . . . . . . 3 3 . 2 . . . . . . Spaces Dug 244 | . 42 6 . 39 27 3 30 11 . . 1 . 11 . . . 5 7 1 . 18 . 7 12 6 13 5 . Terrain Destroyed 899 | . 89 39 . 51 63 5 49 17 1 . 1 1 12 22 . . 167 71 4 . 151 . 8 44 6 54 44 . Melee 65 | . . . . . . 3 . 6 . . 1 . 11 . . . 5 7 1 . . . 4 9 6 7 5 . Projectile 131 | . . . . . 8 2 . . 1 . . 1 1 3 . . . 34 3 . 7 . 4 15 . 13 39 . AOE 703 | . 89 39 . 51 55 . 49 11 . . . . . 19 . . 162 30 . . 144 . . 20 . 34 . . Terrain Rammed . | . . . . . . . . . . . . . . . . . . . . . . . . . . . . . Walls Destroyed . | . . . . . . . . . . . . . . . . . . . . . . . . . . . . . Machines Disabled . | . . . . . . . . . . . . . . . . . . . . . . . . . . . . . Actions | -11 -10 -10 -10 -9 -8 -8 -7 -6 -6 -6 -6 -5 -5 -5 -5 -5 -5 -4 -4 -4 -4 -3 -3 -3 -2 -2 -1 -1 --------- Run | Scr Mat Min Exi Min Mat Sto Fac Fac Low Low Zio Pro Fac Ext Cet Arc Hub Fac Upp Upp War Pro Res Arm Res Tes Acc Com Total 17348 | 104 938 552 163 572 1369 700 798 908 615 228 935 287 437 1007 171 34 582 643 767 377 761 474 528 797 421 937 421 822 Wait 1355 | 3 40 23 . 13 138 75 48 12 47 . 4 11 41 89 2 . 52 13 187 . 154 60 73 56 10 34 38 132 Move 13937 | 82 785 497 157 506 1117 498 654 782 463 216 892 242 315 802 120 33 352 447 546 368 561 410 421 590 381 775 269 656 Hop . | . . . . . . . . . . . . . . . . . . . . . . . . . . . . . Pick Up 189 | 6 15 4 . 9 17 16 11 11 7 6 8 2 11 2 7 . 3 17 . . 3 . 9 8 2 10 4 1 Fast Attach 168 | 5 5 . . 1 1 6 8 . 4 . 7 1 2 2 6 . 17 19 9 5 6 3 4 17 7 16 6 11 Attach 102 | 1 2 1 . 2 6 3 3 3 12 . 2 . 4 . . . 6 17 . . . . 1 7 . 16 9 7 Detach 45 | . 3 . . . . . 2 . 1 1 3 . 2 . 1 . 2 5 . . . . . 11 . 8 2 4 Swap 292 | . 20 3 3 10 25 33 15 24 17 4 5 6 15 30 6 1 19 20 2 . . . 1 13 . 9 11 . Drop 223 | 1 10 3 . 8 9 24 12 11 4 . 11 4 11 13 15 . 10 13 5 1 7 1 3 15 8 14 9 1 Fire 718 | 5 50 18 . 23 54 33 41 54 56 . . 21 24 44 7 . 18 75 7 3 30 . 11 34 1 36 66 7 Melee 253 | . . . 3 . . 9 1 10 4 1 3 . 12 22 7 . 100 16 11 . . . 4 12 12 17 7 2 Ram 1 | . . . . . . . . . . . . . . . . . . 1 . . . . . . . . . . Kick . | . . . . . . . . . . . . . . . . . . . . . . . . . . . . . Crush 27 | 1 5 . . . 2 2 3 1 . . . . . 3 . . 2 . . . . . 1 4 . 2 . 1 Escape Stasis 1 | . . . . . . . . . . . . . . . . . 1 . . . . . . . . . . . Rewire 34 | . 3 . . . . 1 . . . . . . . . . . . . . . . . . 30 . . . . Trap 3 | . . 3 . . . . . . . . . . . . . . . . . . . . . . . . . . Miscellaneous . | . . . . . . . . . . . . . . . . . . . . . . . . . . . . . Route ------- -11/Scrapyard -10/Materials (discovered 5 exits: [*Mat x3] / [*Min x2]) -10/Mines (discovered 3 exits: [*Mat x2] / *Exi) -10/Exiles -9/Mines (discovered 2 exits: *Mat x2) -8/Materials (discovered 2 exits: *Fac / *Sto) -8/Storage -7/Factory -6/Factory (discovered 2 exits: *Low x2) -6/Lower Caves -6/Lower Caves (discovered 2 exits: *Fac / [*Zio]) -6/Zion -5/Proximity Caves -5/Factory (discovered 2 exits: Fac / *Ext) -5/Extension (discovered 2 exits: *Fac / [*Cet]) -5/Cetus -5/Archives -5/Hub_04(d) -4/Factory (discovered 2 exits: *Upp x2) -4/Upper Caves -4/Upper Caves (discovered 2 exits: *Res / *War) -4/Warlord -3/Proximity Caves -3/Research (discovered 4 exits: Res / *Arm / Qua x2) -3/Armory (discovered 2 exits: *Res x2) -2/Research (discovered 2 exits: *Acc / *Tes) -2/Testing -1/Access -1/Command History --------- Turn | Location | Event 69 | -11/Scrapyard | Discovered new exit (range 16) 152 | -11/Scrapyard | Entered Materials 267 | -10/Materials | Discovered new exit (range 6) 320 | -10/Materials | Build established: Mutant 588 | -10/Materials | Repaired EM Pulse Gun 730 | -10/Materials | Discovered new exit (range 4) 840 | -10/Materials | Discovered new exit (range 5) 1038 | -10/Materials | Discovered new exit (range 10) 1301 | -10/Materials | Central database locked down 1362 | -10/Materials | Discovered new exit (range 15) 1656 | -10/Materials | Entered Mines 1663 | -10/Mines | Received a Rocket Launcher from a helpful Derelict 1752 | -10/Mines | Assembled infested the area 1757 | -10/Mines | Assisted by a Guerilla fighting off Assembled 1789 | -10/Mines | Destroyed 14 combat bots 2136 | -10/Mines | Found a hidden stash of uninstalled traps 2184 | -10/Mines | Learned location of 1 exit from Materials 2200 | -10/Mines | Discovered new exit (range 15) 2283 | -10/Mines | Deemed a non-threat by the Exiles lab entrance 2283 | -10/Mines | Discovered new exit (range 5) 2398 | -10/Mines | Discovered new exit (range 8) 2533 | -10/Mines | Entered Exiles 2575 | -10/Exiles | Met 8R-AWN 2604 | -10/Exiles | Met EX-HEX 2649 | -10/Exiles | Met EX-BIN 2698 | -10/Exiles | Met EX-DEC 2704 | -10/Exiles | Learned location of Zion (-6) 2782 | -10/Exiles | Discovered new exit (range 10) 2795 | -10/Exiles | Entered Mines 2834 | -9/Mines | Identified exit to Materials 2908 | -9/Mines | Core integrity fell below 50% 2976 | -9/Mines | Lost 3 parts (1p2n) 3041 | -9/Mines | Met a Derelict testing a Signal Generator 3197 | -9/Mines | Discovered exit to Materials (range 10) 3247 | -9/Mines | A weapon hastily lodged in a ceiling crevice suddenly fell to the ground 3647 | -9/Mines | Excavation squad dispatched 3647 | -9/Mines | A large section of the Mines collapsed 3709 | -9/Mines | Entered Materials 3709 | -8/Materials | Accompanied by 1 ally 3709 | -8/Materials | Evolved 4 slots: Propulsion x2, Utility x1, Weapon x1 3710 | -8/Materials | Identified exit to Storage 3769 | -8/Materials | Repaired Imp. Treads? 4035 | -8/Materials | Build established: Tank 4528 | -8/Materials | Repaired Med. Armor Plating? 4603 | -8/Materials | Discovered new exit (range 17) 6212 | -8/Materials | Entered Storage 6788 | -8/Storage | Assisted by bots powering up and referring to "LRC-V3" 7075 | -8/Storage | Identified exit to Factory 7353 | -8/Storage | Build established: Commander-Mutant 7537 | -8/Storage | Met a pair of Derelict thieves 7586 | -8/Storage | Entered Factory 7586 | -7/Factory | Accompanied by 2 allies 7586 | -7/Factory | Evolved 2 slots: Propulsion x1, Utility x1 7679 | -7/Factory | Repaired Imp. Terrain Scan Processor? 7869 | -7/Factory | Build established: Mutant 8261 | -7/Factory | Cargo convoy interrupted 8269 | -7/Factory | Build established: Gunner 8702 | -7/Factory | Discovered new exit (range 20) 8761 | -7/Factory | Entered another Factory area 8761 | -6/Factory | Evolved 2 slots: Propulsion x1, Utility x1 8863 | -6/Factory | Garrison activated, responded to threat 9549 | -6/Factory | Identified exit to Lower Caves 10125 | -6/Factory | Build established: Scavenger-Mutant 10215 | -6/Factory | Entered Lower Caves 10241 | -6/Lower Caves | Encountered a Warlord checkpoint 10416 | -6/Lower Caves | Attracted the attention of an 0b10 outpost 10500 | -6/Lower Caves | Lost 7 parts (3n2u2w) 10883 | -6/Lower Caves | System corruption reached 10% 10883 | -6/Lower Caves | Spotted B-75 Beast 10938 | -6/Lower Caves | Destroyed B-75 Beast 11055 | -6/Lower Caves | Discovered new exit (range 21) 11147 | -6/Lower Caves | Lost 4 parts (3n1u) 11212 | -6/Lower Caves | Entered another Lower Caves area 11234 | -6/Lower Caves | Discovered new exit (range 17) 11326 | -6/Lower Caves | Discovered new exit (range 53) 11403 | -6/Lower Caves | Found Alien Artifact 11582 | -6/Lower Caves | Entered Zion 11629 | -6/Zion | System corruption cleaned by Quarantine Array 11680 | -6/Zion | Discovered new exit (range 12) 11880 | -6/Zion | Found Exp. Targeting Computer 11883 | -6/Zion | Found Prototype Processor 11883 | -6/Zion | Identified Exp. Terrain Scan Processor 11893 | -6/Zion | Found Prototype Hackware 12066 | -6/Zion | Found CR-A16's Pointy Stick 12229 | -6/Zion | Given the Hacking Drone Bay 12230 | -6/Zion | Found Prototype Device 12230 | -6/Zion | Identified Hacking Drone Bay 12290 | -6/Zion | Learned location of Warlord (-4) 12398 | -6/Zion | Visited the Megawrench Repair Shop 12402 | -6/Zion | Megawrench repaired 13 parts 12432 | -6/Zion | Given A8's code to call for help 12912 | -6/Zion | Found Prototype Processor 12912 | -6/Zion | Identified Exp. Melee Analysis Suite 12915 | -6/Zion | Found Prototype Processor 12915 | -6/Zion | Identified Exp. Core Analyzer 13023 | -6/Zion | System corruption cleaned by Quarantine Array 13080 | -6/Zion | Entered Proximity Caves 13114 | -5/Proximity Caves | P-70 Sage assimilated allied 97-6TQ(S) 13447 | -5/Proximity Caves | Build established: Scavenger-Skirmisher 13523 | -5/Proximity Caves | Discovered new exit (range 11) 13531 | -5/Proximity Caves | Learned 8 Factory zone layouts 13551 | -5/Proximity Caves | Entered Factory 13551 | -5/Factory | Evolved 2 slots: Utility x2 13552 | -5/Factory | Identified exit to Extension 14067 | -5/Factory | Discovered new exit (range 14) 14244 | -5/Factory | Entered Extension 14707 | -5/Extension | Rescued a captive Derelict 14750 | -5/Extension | Rescued a captive Derelict 14751 | -5/Extension | Rescued a captive Derelict 14790 | -5/Extension | Rescued a captive Derelict 14791 | -5/Extension | Rescued a captive Derelict 14857 | -5/Extension | Rescued a captive Derelict 14858 | -5/Extension | Rescued a captive Derelict 14859 | -5/Extension | Enhanced Grunt warped into view, answering call for help 14866 | -5/Extension | Enhanced Grunt warped into view, answering call for help 15046 | -5/Extension | Build established: Scavenger-Tank 15062 | -5/Extension | Spotted B-75 Beast 15087 | -5/Extension | Spotted B-75 Beast 15099 | -5/Extension | Allies destroyed B-75 Beast 15122 | -5/Extension | Revealed the true nature of CR-A16's Pointy Stick 15123 | -5/Extension | Allies destroyed B-75 Beast 15211 | -5/Extension | Rescued a captive Derelict 15378 | -5/Extension | Rescued A7 15701 | -5/Extension | Build established: Tank 15782 | -5/Extension | Energy Cycler disabled 15784 | -5/Extension | Rescued a captive Derelict 15790 | -5/Extension | Rescued a captive Derelict 15841 | -5/Extension | Discovered new exit (range 10) 15843 | -5/Extension | Discovered new exit (range 6) 15862 | -5/Extension | Entered Cetus 15862 | -5/Cetus | Accompanied by 5 allies (A7) 15867 | -5/Cetus | Acquired a Cetus Manufacturing Module code from A7 15883 | -5/Cetus | Spotted Cetus Guard 15883 | -5/Cetus | Spotted Cetus Guard 15883 | -5/Cetus | Spotted Cetus Guard 15883 | -5/Cetus | Spotted Cetus Guard 15897 | -5/Cetus | Allies destroyed Cetus Guard 15911 | -5/Cetus | Destroyed Cetus Guard 15915 | -5/Cetus | Allies destroyed Cetus Guard 15927 | -5/Cetus | Allies destroyed Cetus Guard 16044 | -5/Cetus | Cetus Manufacturing Module disabled 16044 | -5/Cetus | Door terminal overloaded 16081 | -5/Cetus | Escorted A7 to Cetus Mainframe 16094 | -5/Cetus | Discovered new exit (range 21) 16131 | -5/Cetus | Entered Archives 16131 | -5/Archives | Accompanied by 1 ally (A7) 16136 | -5/Archives | Received a hacking code to weaken MAIN.C 16152 | -5/Archives | Met Zhirov 16152 | -5/Archives | Discovered new exit (range 22) 16158 | -5/Archives | Reinforcements dispatched to Archives 16188 | -5/Archives | Entered Hub_04(d) 16278 | -5/Hub_04(d) | Destroyed 9 combat bots 16384 | -5/Hub_04(d) | Garrison activated, responded to threat 16673 | -5/Hub_04(d) | Build established: Scavenger-Mutant 16788 | -5/Hub_04(d) | First assault squad dispatched 16835 | -5/Hub_04(d) | Discovered new exit (range 8) 16882 | -5/Hub_04(d) | Lost 7 parts (4n1u2w) 17124 | -5/Hub_04(d) | Network Hub disabled 17131 | -5/Hub_04(d) | Crushed by falling debris 17138 | -5/Hub_04(d) | Spotted Lightning 17156 | -5/Hub_04(d) | Spotted Lightning 17158 | -5/Hub_04(d) | System corruption reached 10% 17161 | -5/Hub_04(d) | Spotted Lightning 17165 | -5/Hub_04(d) | Spotted Lightning 17167 | -5/Hub_04(d) | Spotted Lightning 17169 | -5/Hub_04(d) | Spotted Lightning 17171 | -5/Hub_04(d) | Core integrity fell below 50% 17184 | -5/Hub_04(d) | Spotted Lightning 17190 | -5/Hub_04(d) | System corruption reached 30% 17195 | -5/Hub_04(d) | Entered Factory 17195 | -4/Factory | Evolved 2 slots: Utility x2 17224 | -4/Factory | Lost 4 parts (1p1u2w) 17518 | -4/Factory | Identified exit to Upper Caves 17839 | -4/Factory | Lost 3 parts (2n1u) 17937 | -4/Factory | Identified Dimensional Node Initializer 17937 | -4/Factory | Initialized slip node 18010 | -4/Factory | Lost 14 parts (2p4n4u4w) 18030 | -4/Factory | Identified Exp. Hacking Suite 18195 | -4/Factory | First assault squad dispatched 18225 | -4/Factory | Core integrity fell below 50% 18225 | -4/Factory | Entered Upper Caves 18295 | -4/Upper Caves | Learned 8 Research zone layouts 18295 | -4/Upper Caves | Learned Research emergency access door positions 18295 | -4/Upper Caves | Learned Extension emergency access door positions 18295 | -4/Upper Caves | Learned Extension garrison access intel 18333 | -4/Upper Caves | Build established: Scavenger-Assassin 18620 | -4/Upper Caves | Attracted the attention of an 0b10 checkpoint 18702 | -4/Upper Caves | Lost 3 parts (1n1u1w) 18907 | -4/Upper Caves | Learned Research stockpile data 19010 | -4/Upper Caves | Build established: Hacker-Assassin 19060 | -4/Upper Caves | Discovered new exit (range 10) 19070 | -4/Upper Caves | Identified exit to Upper Caves 19093 | -4/Upper Caves | Entered another Upper Caves area 19160 | -4/Upper Caves | Discovered new exit (range 13) 19192 | -4/Upper Caves | Attracted the attention of an 0b10 checkpoint 19213 | -4/Upper Caves | Learned location of Armory (-3) 19362 | -4/Upper Caves | Encountered a Warlord checkpoint 19439 | -4/Upper Caves | Discovered new exit (range 4) 19441 | -4/Upper Caves | Identified exit to Warlord 19499 | -4/Upper Caves | Entered Warlord 19507 | -4/Warlord | Build established: Hacker-Mutant 19588 | -4/Warlord | Found Prototype Special Weapon 19625 | -4/Warlord | Learned Quarantine security intel 19625 | -4/Warlord | Learned Armory terminal intel 19625 | -4/Warlord | Learned Armory fabricator intel 19625 | -4/Warlord | Learned Armory repair station intel 19625 | -4/Warlord | Learned Research recycling unit intel 19625 | -4/Warlord | Learned 4 Armory zone layouts 19625 | -4/Warlord | Learned 4 Quarantine zone layouts 19625 | -4/Warlord | Learned Quarantine emergency access door positions 19636 | -4/Warlord | Found Prototype Special Weapon 19636 | -4/Warlord | Identified RU-N14's Throwing Claymores v3 (x2) 19772 | -4/Warlord | Visited the Vortex Lab 19778 | -4/Warlord | Warlord's base attacked by MAIN.C 19779 | -4/Warlord | Found Prototype Energy Cannon 19779 | -4/Warlord | Identified Vortex Driver 19787 | -4/Warlord | Found Vortex Driver 19834 | -4/Warlord | Met Warlord 19937 | -4/Warlord | Build established: Hacker-Skirmisher 20081 | -4/Warlord | Spotted B-90 Cyclops 20085 | -4/Warlord | Spotted B-86 Titan 20128 | -4/Warlord | Warlord forces counterattacked 20138 | -4/Warlord | Destroyed 12 combat bots 20141 | -4/Warlord | Found RU-N14's Throwing Claymores v3 20155 | -4/Warlord | Spotted Striker 20199 | -4/Warlord | Destroyed 7 combat bots 20199 | -4/Warlord | Spotted Executioner 20201 | -4/Warlord | Spotted Striker 20205 | -4/Warlord | Destroyed Striker 20205 | -4/Warlord | Destroyed Executioner 20208 | -4/Warlord | Spotted Executioner 20224 | -4/Warlord | Discovered new exit (range 14) 20228 | -4/Warlord | Destroyed 13 combat bots 20234 | -4/Warlord | Identified exit to Proximity Caves 20235 | -4/Warlord | Entered Proximity Caves 20626 | -3/Proximity Caves | Discovered new exit (range 12) 20669 | -3/Proximity Caves | Identified exit to Research 20670 | -3/Proximity Caves | Entered Research 20670 | -3/Research | Evolved 2 slots: Utility x2 20671 | -3/Research | Identified exit to Research 20671 | -3/Research | Identified exit to Quarantine 20671 | -3/Research | Identified exit to Armory 20674 | -3/Research | Loaded intel: 4 recycling unit locations 21127 | -3/Research | Found Prototype Processor 21194 | -3/Research | Entered Armory 21196 | -3/Armory | Loaded intel: 12 terminal locations 21197 | -3/Armory | Loaded intel: 6 fabricator locations 21198 | -3/Armory | Loaded intel: 2 repair station locations 21296 | -3/Armory | Found Adv. Force Booster 21321 | -3/Armory | Build established: Hacker-Assassin 21492 | -3/Armory | Lost 3 parts (1n2w) 22056 | -3/Armory | Assisted by bots powering up and referring to "LRC-V3" 22198 | -3/Armory | Entered Research 22198 | -2/Research | Accompanied by 3 allies 22198 | -2/Research | Warlord forces began assault on 0b10 22198 | -2/Research | Evolved 2 slots: Utility x1, Weapon x1 22202 | -2/Research | Discovered new exit (range 20) 22283 | -2/Research | Identified exit to Access 22308 | -2/Research | Research machine network offline 22525 | -2/Research | Discovered new exit (range 20) 22563 | -2/Research | Identified exit to Testing 22681 | -2/Research | Spotted Striker 22685 | -2/Research | Spotted Striker 22695 | -2/Research | Spotted Executioner 22735 | -2/Research | Borebot progress halted 22807 | -2/Research | Entered Testing 22844 | -2/Testing | Spotted PL-BRCMQD6ONH 22879 | -2/Testing | Found Prototype Launcher 22879 | -2/Testing | Identified Z-bomb Delivery System 22982 | -2/Testing | Found Prototype Protection 22982 | -2/Testing | Identified SHELL Armor 22994 | -2/Testing | Found Prototype Protection 22994 | -2/Testing | Identified Hvy. Regenerative Plating 23252 | -2/Testing | Found Prototype Device 23252 | -2/Testing | Identified Beam Splitter 23286 | -2/Testing | Spotted Striker 23290 | -2/Testing | Spotted Striker 23311 | -2/Testing | Spotted Alpha 7 23317 | -2/Testing | Destroyed Striker 23374 | -2/Testing | Destroyed Alpha 7 23400 | -2/Testing | Lost 4 parts (1p1n2w) 23408 | -2/Testing | System corruption reached 10% 23442 | -2/Testing | Lost 3 parts (1n1u1w) 23619 | -2/Testing | Identified Spectral Analyzer 23692 | -2/Testing | Found Prototype Protection 23692 | -2/Testing | Identified Med. Regenerative Plating 23699 | -2/Testing | Found Med. Regenerative Plating 23972 | -2/Testing | Repaired Arm. Heavy Treads? 24036 | -2/Testing | Repaired Adv. Terrain Scanner 24199 | -2/Testing | Discovered exit to Access (range 17) 24310 | -2/Testing | Entered Access 24310 | -1/Access | Evolved 2 slots: Power x1, Utility x1 24311 | -1/Access | Identified exit to Command 24760 | -1/Access | Lost 11 parts (2p3n4u2w) 24829 | -1/Access | Destroyed 7 combat bots 24902 | -1/Access | Lost 9 parts (1p3n3u2w) 24918 | -1/Access | Entered Command 24954 | -1/Command | Spotted B-99 Colossus 24968 | -1/Command | Build established: Hacker-Mutant 25050 | -1/Command | Disengaged cave seal 25050 | -1/Command | Derelicts emerged from the dark tunnel 25050 | -1/Command | Welcomed Warlord to Command 25193 | -1/Command | Lost 3 parts (1p1n1w) 25363 | -1/Command | Spotted M Guard 25363 | -1/Command | Spotted M Guard 25372 | -1/Command | Warlord commented on Warlord statues 25374 | -1/Command | Spotted Combat Programmer 25374 | -1/Command | Spotted Combat Programmer 25394 | -1/Command | Met MAIN.C 25395 | -1/Command | Hacked MAIN.C using A7's code 25398 | -1/Command | System corruption reached 10% 25406 | -1/Command | 0b10 Conduit disabled 25410 | -1/Command | Core integrity fell below 50% 25431 | -1/Command | Core integrity fell below 20% 25450 | -1/Command | Destroyed by M Guard with Ragnarok Missile Launcher Last Messages --------------- EMDS 25440_ EMDS Slug penetrates Heavy Barrier. 25441_ MAIN.C reaction time slowed by virus. 25443_ Penetrated by EMDS Slug. 25443_ MAIN.C reaction time slowed by virus. 25445_ Penetrated by EMDS Slug. 25448_ Jacked M Guard... >>parse_system Reading system data... New IDs: Exp. Biometal Heavy Treads AEGIS Remote Shield Thermal Barrier Exp. Matter Compressor Exp. Coolant Injector Graviton Cannon Hellfire Missile Launcher 25448_ EMDS Slug penetrates Reinforced Barrier. 25449_ MAIN.C reaction time slowed by virus. 25450_ Combat Programmer knocked back. Map ----- +----------------------------------------------------+ | ?????????????????????????????????????????????????? | | ?????????????????????????????????????????????????? | | ?????????????????????????????????????????????????? | | ?????????????????????????????????????????????????? | | ?????????????????????????????????????????????????? | | ?????????????????????????????????????????????????? | | ?????????????????????????????????????????????????? | | ?????????????????????????????????????????????????? | | ?????????????????????????????????????????????????? | | ?????????????????????????????????????????????????? | | ??????????????????????????#####################??? | | ????????????????????????#""""""" """" #??? | | ????????????????????????#"" "" #??? | | ????????????????????????#""""" "" #### | | ????????????????????????#""""""""""" / | | ????????????????????????#" " """ %/ | | ????????????????????????#"" """""" / | | ????????????????????????#"" """""" #### | | ????????????????????????# " """ #??? | | ????????????????????????# " " #??? | | ????????????????????????# " "MMM ""#??? | | ????????????????????????# """""" MMM """""""#??? | | ????????????????????????# Y MMM"""""""""#??? | | ????????????????????????# p Y """""""""""#??? | | ????????????????????????# p " " " " #??? | | ????????????????????????#@ " " " " #??? | | ????????????????????????" " " " """" " #??? | | ????????????????????????" """ " " """" #??? | | ????????????????????????" " " " " #??? | | ????????????????????????# " """""""" " #??? | | ????????????????????????# """ " """"""""#??? | | ????????????????????????# """ " " " #??? | | ????????????????????????#####################????? | | ?????????????????????????????????????????????????? | | ?????????????????????????????????????????????????? | | ?????????????????????????????????????????????????? | | ?????????????????????????????????????????????????? | | ?????????????????????????????????????????????????? | | ?????????????????????????????????????????????????? | | ?????????????????????????????????????????????????? | | ?????????????????????????????????????????????????? | | ?????????????????????????????????????????????????? | | ?????????????????????????????????????????????????? | | ?????????????????????????????????????????????????? | | ?????????????????????????????????????????????????? | | ?????????????????????????????????????????????????? | | ?????????????????????????????????????????????????? | | ?????????????????????????????????????????????????? | | ?????????????????????????????????????????????????? | | ?????????????????????????????????????????????????? | +----------------------------------------------------+ Best States ------------- Heat Dissipation 142 Energy Generation 43 Energy Capacity 590 Matter Stores 300 Matter Capacity 300 Sight Range 24 Robot Scan Range 16 Terrain Scan Range 20 Terrain Scan Density 1010 Jamming Range 12 Power Amplification 20 Armor Coverage 900 Resistance: KI 25 Resistance: TH 10 Resistance: EM 15 Propulsion Shielding 66 Weapon Shielding 66 Weapon Cycling 20 Evasion (%) 55 Targeting Accuracy 28 Target Analysis 8 Armor Integrity Analysis 30 Recoil Reduction 6 Particle Charging 20 Salvage Targeting 1 Offensive Hacking 48 Defensive Hacking 12 Item Schematics ----------------- Imp. Treads | -8/Materials | Scanalyzed Hcp. Storage Unit | -8/Materials | Hacked Centrium Heavy Treads | -4/Factory | Scanalyzed Biometal Heavy Treads | -4/Factory | Hacked Lgt. Regenerative Plating | -2/Testing | Hacked Robot Schematics ------------------ None Fabricated ------------ Nothing Alien Tech Used ----------------- Dimensional Node Initializer Achievements -------------- Just Shoot The Terminal Main Advantage Meet Your Maker Poison In The Code Challenges ------------ None Game ------ Seed LaserModifiedTriangulator Manual? 0 Play Time 05:50:14 Cumulative 157.8 hours Start 2021.12.05 @ 21:04:28 End 2021.12.10 @ 03:32:03 Sessions 31 Manual Loads 0 Difficulty Rogue Special Mode None Game No. 91 Rogue 91 Adventurer 0 Explorer 0 Win Type - Total 3 Types 2/0/0/1/0/0/0/0/0 Lore% 74 Gallery% 80 Achievement% 57 Wizard Run 0 Options --------- ASCII 0 Keyboard 1 Movement Vi Keybinds 0 Fullscreen 2 Font 18/Cog Map View 76x50 Tactical HUD 1 Map Filters NONE Filters NONE Steam 0 RUN: 18ffdbe5-bedb-4142-b849-505921b9e02f